Cogmind - Beta 13 @@@ ROGUE MODE // 2024.04.07 @ 14:43:05 // AFD2020/Player2 Player: opdo Result: Core destroyed Performance ------------- Evolutions (0) 0 Regions Visited (4) 800 Robots Destroyed (14) 70 Value Destroyed (275) 275 Prototype IDs (0) 0 Alien Tech Used (0) 0 Bonus (97) 97 TOTAL SCORE: 1242 Bonus ------- Follower Combat Kills 121 Friendly Fire -24 Cogmind --------- Core Integrity 0/250 Matter 292/300 Energy 248/250 System Corruption 3% Temperature Cool (0) Movement Core (200) Ox3 Location -9/Mines Parts ------- > --- POWER (1) -------- Ion Engine > --- PROPULSION (2) --- (None) > --- UTILITY (2) ------ Small Storage Unit Signal Interpreter > --- WEAPON (2) ------- Light Assault Rifle Light Assault Rifle > --- INVENTORY (8) ---- Light Nuclear Core Aluminum Leg Aluminum Leg Medium Storage Unit Improved Terrain Scanner Weapon Shielding Light Assault Rifle Peak State ------------ > --- POWER ------------ Ion Engine > --- PROPULSION ------- Aluminum Leg Aluminum Leg > --- UTILITY ---------- Small Storage Unit Signal Interpreter > --- WEAPON ----------- Assault Rifle Light Assault Rifle > --- INVENTORY -------- Light Ion Engine Light Nuclear Core Aluminum Leg Aluminum Leg Improved Terrain Scanner Weapon Shielding Light Assault Rifle [Rating: 8] Favorites ----------- Power Ion Engine Engine Ion Engine Propulsion Hover Unit Leg Aluminum Leg Hover Unit Hover Unit Utility Small Storage Unit Storage Small Storage Unit Processor Signal Interpreter Weapon Light Assault Rifle Ballistic Gun Light Assault Rifle Build | -11 -10 -10 -10 -9 ------- Run | Yrd Mat Min Exi Min Slots Evolved . | . . . . . Power . | . . . . . Propulsion . | . . . . . Utility . | . . . . . Weapon . | . . . . . Parts Attached 15 | 6 5 4 . . Power 3 | 1 1 1 . . Engine 3 | 1 1 1 . . Core . | . . . . . Reactor . | . . . . . Propulsion 7 | 2 2 3 . . Treads . | . . . . . Leg 4 | 2 2 . . . Wheel . | . . . . . Hover 3 | . . 3 . . Flight . | . . . . . Utility 2 | 1 1 . . . Device . | . . . . . Storage 1 | 1 . . . . Processor 1 | . 1 . . . Hackware . | . . . . . Protection . | . . . . . Artifact . | . . . . . Weapon 3 | 2 1 . . . Energy Gun . | . . . . . Energy Cannon . | . . . . . Ballistic Gun 3 | 2 1 . . . Ballistic Cannon . | . . . . . Launcher . | . . . . . Special Weapon . | . . . . . Impact Weapon . | . . . . . Slashing Weapon . | . . . . . Piercing Weapon . | . . . . . Special Melee Weapon . | . . . . . Unidentified Prototypes . | . . . . . Parts Lost 2 | . . . . 2 Power . | . . . . . Propulsion 2 | . . . . 2 Utility . | . . . . . Weapon . | . . . . . Highest Loss Streak 2 | . . . . 2 To Critical Strikes . | . . . . . Average Slot Usage (%) 95 | . 89 99 100 96 Engine 13 | . 13 14 14 14 Leg 10 | . 28 . . . Hover 17 | . . 27 28 24 Storage 14 | . 14 14 14 14 Processor 10 | . 5 14 14 14 Ballistic Gun 27 | . 26 28 28 28 Naked Turns . | . . . . . Heaviest Build 13 | 13 13 12 12 12 Greatest Support 20 | 20 20 12 12 12 Greatest Overweight (x) 1 | . . 1 . . Average Overweight (x) . | . . . . . Largest Inventory Capacity 8 | 8 8 8 8 8 Average Capacity 7 | 5 8 8 8 8 Most Carried 8 | 5 8 8 7 7 Average Carried 6 | 3 5 7 7 7 Final Capacity 8 | 8 8 8 8 8 Final Carried 8 | 3 8 7 7 7 Class Distribution -------------------- 100% | Mutant Dominant Class ---------------- Mutant | -10/Materials Mutant | -10/Mines Mutant | -10/Exiles Mutant | -9/Mines Resources | -11 -10 -10 -10 -9 ----------- Run | Yrd Mat Min Exi Min Matter Collected 468 | 139 221 83 10 15 Remotely . | . . . . . Salvage Created 298 | 38 163 44 . 53 Parts 29 | 4 11 8 . 6 Haulers Intercepted . | . . . . . Recyclers Shooed 1 | . . 1 . . Parts Field Recycled . | . . . . . Retrieved Matter . | . . . . . Parts Self-Destructed . | . . . . . Prevented . | . . . . . Kills | -11 -10 -10 -10 -9 ------- Run | Yrd Mat Min Exi Min Combat Hostiles Destroyed 12 | . 5 3 . 4 Guns 12 | . 5 3 . 4 Classes Destroyed 4 | 1 2 . . 1 Tunneler 2 | 2 . . . . Swarmer 8 | . 2 3 . 3 Grunt 3 | . 3 . . . Demolisher 1 | . . . . 1 Best Kill Streak 4 | 2 2 3 . 4 Combat Bots Only 4 | . 2 3 . 4 Max Kills in Single Turn 1 | 1 1 1 . 1 Gunslinging . | . . . . . Exploded . | . . . . . Melee . | . . . . . Uniques/NPCs Destroyed . | . . . . . Combat | -11 -10 -10 -10 -9 -------- Run | Yrd Mat Min Exi Min Hostile Shots Fired 48 | . 21 9 . 18 Missed 14 | . 7 1 . 6 Damage Taken 445 | . 161 78 . 206 Core 138 | . 25 15 . 98 Absorbed by Shields . | . . . . . Core Remaining (%) 100 | 100 . . . . Volleys Fired 39 | 3 19 6 . 11 Largest 2 | 2 2 2 . 2 Hottest 40 | 40 40 40 . 40 Shots Fired 76 | 6 36 12 . 22 Gun 76 | 6 36 12 . 22 Cannon . | . . . . . Launcher . | . . . . . Special . | . . . . . Kinetic 76 | 6 36 12 . 22 Thermal . | . . . . . Explosive . | . . . . . Electromagnetic . | . . . . . Robot Hit Streak 12 | 1 12 3 . 4 Robot Miss Streak 3 | 2 2 3 . 2 Penetration Max . | . . . . . Secondary Targets 3 | . . 1 . 2 Max Gunslinging Chain 1 | . . 1 . 1 Shots Hit Robots 49 | 2 27 6 . 14 Core Hits 25 | 2 10 3 . 10 Critical Kills 1 | . . . . 1 Critical Parts Destroyed 2 | . 1 . . 1 Critical Strikes 3 | . 1 . . 2 Destroy 3 | . 1 . . 2 Melee Attacks . | . . . . . Impact . | . . . . . Slashing . | . . . . . Piercing . | . . . . . Sneak Attacks . | . . . . . Combat Hostiles . | . . . . . Follow-up Attacks . | . . . . . Damage Inflicted 521 | 23 292 77 . 129 Guns 504 | 23 292 60 . 129 Cannons . | . . . . . Explosions . | . . . . . Melee . | . . . . . Ramming 17 | . . 17 . . Kinetic 504 | 23 292 60 . 129 Thermal . | . . . . . Explosive . | . . . . . Electromagnetic . | . . . . . Impact . | . . . . . Slashing . | . . . . . Piercing . | . . . . . Highest Corruption 3 | . 3 3 3 3 Average Corruption 2 | . 2 3 3 3 Corruption Purged . | . . . . . Corruption Blocked . | . . . . . Effects 14 | . 4 6 4 . Message Errors 4 | . 1 1 2 . Matter Fused 2 | . . 1 1 . Heat Flow Errors 2 | . . 2 . . Energy Discharges 3 | . 1 2 . . Parts Fused 1 | . 1 . . . Data Loss (minor) 2 | . 1 . 1 . Overload Shots . | . . . . . Overflow Damage . | . . . . . Projectiles . | . . . . . Explosions . | . . . . . Melee . | . . . . . Knockbacks . | . . . . . Impact . | . . . . . Kinetic . | . . . . . Secondary . | . . . . . Self-Inflicted Damage 8 | . . 8 . . Shots . | . . . . . Rammed 1 | . . 1 . . Targets Rammed 1 | . . 1 . . Kicked . | . . . . . Crushed . | . . . . . Highest Temperature 216 | . 9 216 . 8 Average Temperature 51 | . 8 80 . 3 Received Heat Transfer 75 | . 75 . . . Siege Activations . | . . . . . Robots Corrupted . | . . . . . Combat Hostiles . | . . . . . Parts Fried . | . . . . . Impact Corruptions . | . . . . . Robots Melted . | . . . . . Combat Hostiles . | . . . . . Parts Melted 1 | . 1 . . . Heat Transferred . | . . . . . Parts Sabotaged . | . . . . . Parts Stolen . | . . . . . Parts Stripped . | . . . . . Power Chain Reactions . | . . . . . Alert | -11 -10 -10 -10 -9 ------- Run | Yrd Mat Min Exi Min Peak Influence 306 | 10 306 205 . 94 Initial 118 | . 6 118 . . Average 139 | 2 174 164 . 23 Maximum Alert Level 1 | . 1 1 . . Low Security (%) 62 | 100 45 60 . 100 Level 1 37 | . 54 39 . . Level 2 . | . . . . . Level 3 . | . . . . . Level 4 . | . . . . . Level 5 . | . . . . . High Security . | . . . . . Max Security . | . . . . . Squads Dispatched 2 | . 2 . . . Investigation . | . . . . . Extermination . | . . . . . Reinforcement 2 | . 2 . . . Assault . | . . . . . Garrison . | . . . . . Intercept . | . . . . . Searches Triggered . | . . . . . Construction Impeded . | . . . . . Haulers Reinforced . | . . . . . Active Scanning Responses . | . . . . . Cargo Convoy Interrupts . | . . . . . Stealth | -11 -10 -10 -10 -9 --------- Run | Yrd Mat Min Exi Min Distress Signals 1 | . 1 . . . Communications Jammed . | . . . . . Distress Signals . | . . . . . Times Spotted 22 | . 13 3 . 6 Peak Tracking Total 4 | . 4 3 . 4 Tactical Retreats . | . . . . . Traps | -11 -10 -10 -10 -9 ------- Run | Yrd Mat Min Exi Min Traps Triggered 3 | . 3 . . . Indirectly . | . . . . . Trap Hack Attempts . | . . . . . Triggered . | . . . . . Disarmed . | . . . . . Reprogrammed . | . . . . . Reused . | . . . . . Traps Extracted . | . . . . . Installed . | . . . . . Triggered 1 | . . 1 . . Machines | -11 -10 -10 -10 -9 ---------- Run | Yrd Mat Min Exi Min Machines Disabled . | . . . . . Max in Single Turn . | . . . . . Machines Repaired . | . . . . . Machines Dismantled . | . . . . . Machines Sabotaged . | . . . . . Overloaded Fab Kills . | . . . . . Hacking | -11 -10 -10 -10 -9 --------- Run | Yrd Mat Min Exi Min Machines Accessed 3 | . 3 . . . Terminals 3 | . 3 . . . Fabricators . | . . . . . Repair Stations . | . . . . . Recycling Units . | . . . . . Scanalyzers . | . . . . . Garrison Access . | . . . . . Total Hacks 9 | . 9 . . . Successful 4 | . 4 . . . Failed 5 | . 5 . . . Catastrophic . | . . . . . Database Lockouts . | . . . . . Manual 9 | . 9 . . . Terminals 9 | . 9 . . . Fabricators . | . . . . . Repair Stations . | . . . . . Recycling Units . | . . . . . Scanalyzers . | . . . . . Garrison Access . | . . . . . Terminal Hacks 1 | . 1 . . . Alert Level 1 | . 1 . . . Fabricator Hacks . | . . . . . Repair Station Hacks . | . . . . . Recycling Unit Hacks . | . . . . . Scanalyzer . | . . . . . Garrison Access Hacks . | . . . . . Unauthorized Hacks 3 | . 3 . . . Terminals 3 | . 3 . . . Assimilate 1 | . 1 . . . Botnet 1 | . 1 . . . Operators 1 | . 1 . . . Fabricators . | . . . . . Repair Stations . | . . . . . Recycling Units . | . . . . . Scanalyzers . | . . . . . Garrison Access . | . . . . . Data Cores Recovered . | . . . . . Used . | . . . . . Hacking Detections 2 | . 2 . . . Full Trace Events 1 | . 1 . . . Feedback Events . | . . . . . Feedback Blocked . | . . . . . Robot Schematics Acquired . | . . . . . Robots Built . | . . . . . Authchips . | . . . . . Time . | . . . . . Total Robot Build Rating . | . . . . . Part Schematics Acquired . | . . . . . Parts Built . | . . . . . Authchips . | . . . . . Time . | . . . . . Total Part Build Rating . | . . . . . Parts Repaired . | . . . . . Time . | . . . . . Parts Recycled . | . . . . . Recycled Matter . | . . . . . Retrieved Matter . | . . . . . Retrieved Components . | . . . . . Parts Scanalyzed . | . . . . . Part Schematics Acquired . | . . . . . Parts Damaged . | . . . . . Bothacking | -11 -10 -10 -10 -9 ------------ Run | Yrd Mat Min Exi Min Used RIF Installer . | . . . . . Robots Hacked . | . . . . . Non-combat . | . . . . . Combat . | . . . . . Robot Hacks Applied . | . . . . . Relay Couplers Released . | . . . . . Fabnet Peak Effective % . | . . . . . Robots Rewired . | . . . . . Allies Hacked . | . . . . . Hacks Repelled . | . . . . . Allies | -11 -10 -10 -10 -9 -------- Run | Yrd Mat Min Exi Min Total Allies 6 | . 1 5 . . Largest Group 6 | . 1 6 6 4 Highest-Rated Group 145 | . 59 145 145 99 Highest-Rated Ally 59 | . 59 59 59 59 Total Orders . | . . . . . Ally Attacks 31 | . 16 . . 15 Total Damage 483 | . 286 . . 197 Kills 7 | . 6 . . 1 Allies Corrupted . | . . . . . Allies Melted . | . . . . . Intel | -11 -10 -10 -10 -9 ------- Run | Yrd Mat Min Exi Min Robot Analysis Total . | . . . . . Derelict Logs Recovered 2 | . . 1 . 1 Drone Launches . | . . . . . Drone Recoveries . | . . . . . Exploration | -11 -10 -10 -10 -9 ------------- Run | Yrd Mat Min Exi Min Turns Passed 1013 | 82 342 351 155 83 Spaces Moved 1077 | 57 210 491 218 101 Core 13 | 13 . . . . Treads . | . . . . . Legs 254 | 44 210 . . . Wheels . | . . . . . Hover 810 | . . 491 218 101 Flight . | . . . . . Fastest Speed 50 | 50 120 56 56 56 Average Speed 71 | 104 120 58 56 56 Slowest Speed 120 | 120 120 120 56 56 Overloaded Moves . | . . . . . Propulsion Burnouts . | . . . . . Robots Hopped . | . . . . . Cave-ins Triggered . | . . . . . Exploration Rate (%) 43 | 5 48 98 51 13 Regions Visited 4 Branch Regions 3 Pre-discovered Areas 1 | . . 1 . . Known Exits Taken 3 | . 1 1 1 . Unknown Exits Taken 1 | 1 . . . . Scrap Searched 3 | . . 1 . 2 Spaces Dug . | . . . . . Terrain Destroyed . | . . . . . Melee . | . . . . . Projectile . | . . . . . AOE . | . . . . . Terrain Rammed . | . . . . . Walls Destroyed . | . . . . . Machines Disabled . | . . . . . Actions | -11 -10 -10 -10 -9 --------- Run | Yrd Mat Min Exi Min Total 1252 | 74 268 548 250 112 Wait 96 | . 23 40 33 . Move 1073 | 56 209 490 217 101 Hop . | . . . . . Pick Up 23 | 9 11 3 . . Fast Attach . | . . . . . Attach 11 | 6 4 1 . . Detach . | . . . . . Swap 4 | . 1 3 . . Drop 5 | . 1 4 . . Fire 39 | 3 19 6 . 11 Melee . | . . . . . Ram 1 | . . 1 . . Kick . | . . . . . Crush . | . . . . . Escape Stasis . | . . . . . Rewire . | . . . . . Trap . | . . . . . Miscellaneous . | . . . . . Route ------- -11/Scrapyard -10/Materials -10/Mines (discovered 3 exits: *Mat x2 / *Exi) -10/Exiles -9/Mines (discovered 1 exit: *Mat) History --------- Turn | Location | Event 12 | -11/Scrapyard | Discovered new exit (range 15) 83 | -11/Scrapyard | Entered Materials 321 | -10/Materials | Build established: Mutant 376 | -10/Materials | Discovered new exit (range 16) 424 | -10/Materials | Identified exit to Mines 425 | -10/Materials | Entered Mines 504 | -10/Mines | Learned location of Zion (-6) 506 | -10/Mines | Discovered new exit (range 9) 510 | -10/Mines | Identified exit to Materials 527 | -10/Mines | Assisted by bots powering up and referring to "LRC-V3" 574 | -10/Mines | Discovered exit to Materials (range 11) 746 | -10/Mines | Deemed a non-threat by the Exiles lab entrance 746 | -10/Mines | Discovered new exit (range 5) 748 | -10/Mines | Identified exit to Exiles 776 | -10/Mines | Entered Exiles 776 | -10/Exiles | Accompanied by 5 allies 790 | -10/Exiles | Met 8R-AWN 798 | -10/Exiles | Met EX-HEX 806 | -10/Exiles | Led the pair of lost Derelicts to a safe place 836 | -10/Exiles | Met EX-DEC 890 | -10/Exiles | Discovered new exit (range 10) 897 | -10/Exiles | Identified exit to Mines 931 | -10/Exiles | Entered Mines 931 | -9/Mines | Accompanied by 3 allies 956 | -9/Mines | Assembled infested the area 961 | -9/Mines | Assisted by a Guerilla fighting off Assembled 975 | -9/Mines | Core integrity fell below 50% 996 | -9/Mines | Discovered new exit (range 6) 997 | -9/Mines | Learned 2 Materials zone layouts 998 | -9/Mines | Identified exit to Materials 1004 | -9/Mines | Core integrity fell below 20% 1010 | -9/Mines | Lost 4 allies 1014 | -9/Mines | Core destroyed Last Messages --------------- 00990_ The unstable cave ceiling collapses. 00992_ Acquired 8 matter. 00996_ EXIT=FOUND 00997_ Acquired derelict log, extracted data. Data stored: Materials zone layouts (x2). 00998_ EXIT=IDENTIFIED: MATERIALS 00998_ S-10 Pest destroyed. 01002_ Hover Unit destroyed. 01004_ S-10 Pest suffers critical hit (Destroy). 01004_ S-10 Pest destroyed. 01004_ Switching to secondary target: S-10 Pest. 01005_ Hover Unit destroyed. 01006_ S-10 Pest destroyed. 01006_ Switching to secondary target: S-10 Pest. 01008_ K-01 Serf collects debris. 01008_ R-06 Scavenger collects Lgt. Assault Rifle. 01010_ K-01 Serf collects debris. 01014_ S-10 Pest suffers critical hit (Destroy). 01014_ Destroyed Lgt. Assault Rifle. Map ----- +----------------------------------------------------+ | ?????????????????????????????????????????????????? | | ?????????????????????????????????????????????????? | | ?????????????????????????????????????????????????? | | ?????????????????????????????????????????????????? | | ?????????????????????????????????????????????????? | | ?????????????????????????????????????????????????? | | ?????????????????????????????????????????????????? | | ?????????????????????????????????????????????????? | | ?????????????????????????????????????????????????? | | ?????????????????????????????????????????????????? | | ?????????????????????????????????????????????????# | | ????????????????????????????????????????????????## | | ???????????????????????????????????????????????## | | ???????????????????????????????????????????????# ! | | ???????????????????????????????????????????????# | | ????????????????????????????????????############ | | ????????????????????????????????????? !# ## ## | | ?????????????????????????????????????##! # ## | | ?????????????????????????????????????# # ### | | ????????????????????????############## # # | | ????????????????????????# @ % % % # | | ????????????????????????# ######## ## % # | | ????????????????????????#r#??????# ### % | | ????????????????????????#=#??????# #?# # | | ?????????????????????####%##?????# #?# # # | | ?????????????????????# =k@ #?????# #?##### ###### | | ?????????????????????# *<* #?????# ##????####???? | | ?????????????????????# =% #????? #???????????? | | ?????????????????????# s"""#????? #???????????? | | ?????????????????????# """#?????# ????????????? | | ?????????????????????# """#????? #???????????? | | ?????????????????????# #?????#####???????????? | | ?????????????????????#######?????????????????????? | | ?????????????????????????????????????????????????? | | ?????????????????????????????????????????????????? | | ?????????????????????????????????????????????????? | | ?????????????????????????????????????????????????? | | | | | | | | | | | | | | | | | | | | | | | | | | | +----------------------------------------------------+ Best States ------------- Heat Dissipation 25 Energy Generation 10 Energy Capacity 250 Matter Stores 300 Matter Capacity 300 Sight Range 16 Terrain Scan Density 10 Evasion (%) 55 Item Schematics ----------------- None Robot Schematics ------------------ None Fabricated ------------ Nothing Alien Tech Used ----------------- None Achievements -------------- None Challenges ------------ None Player 2 | -11 -10 -10 -10 -9 ---------- Run | Yrd Mat Min Exi Min Slots Evolved . | . . . . . Power . | . . . . . Propulsion . | . . . . . Utility . | . . . . . Weapon . | . . . . . Parts Attached 12 | . 10 . . 2 Parts Lost 4 | . 1 . . 3 Damage Taken 442 | . 113 . . 329 Core 128 | . 37 . . 91 Player 2/Cogmind (%) 48 | . 59 . . 48 Absorbed by Shields 13 | . 13 . . . Damage Inflicted 428 | . 286 . . 142 Player 2/Cogmind (%) 45 | . 49 . . 52 Combat Hostiles Destroyed 4 | . 4 . . . Player 2/Cogmind (%) 25 | . 44 . . . Game ------ Seed ScanTeslaNullifier Manual? 0 Play Time 00:09:26 Cumulative 28.5 hours Start 2024.04.07 @ 14:32:10 End 2024.04.07 @ 14:43:05 Sessions 1 Manual Loads 0 Difficulty Rogue Special Mode AFD2020/Player2 Game No. 79 Rogue 77 Adventurer 2 Explorer 0 Win Type - Total 0 Types 0/0/0/0/0/0/0/0/0 Lore% 27 Gallery% 38 Achievement% 30 Wizard Run 0 Options --------- Layout 1 ASCII 0 Keyboard 0 Movement Arrows Keybinds 0 Fullscreen 2 Font 24/Smallcaps Map View 50x35 Zoom Use 0% Tactical HUD 1 Map Filters NONE Filters NONE Steam 1 RUN: bb795bf0-ba6e-4d48-a660-1229542dc638